bitfinex/quotes_BTCUSD_20241001
["timestamp","ask_amount","ask_price","bid_price","bid_amount"]
[1727812194697,0.26589272,61896.0,61895.0,0.193876]
[1727812194937,0.26589272,61896.0,61895.0,0.192876]
[1727812195205,0.03567314,61896.0,61894.0,0.193878]
[1727812195441,0.39702747,61895.0,61890.0,0.388784]
[1727812195682,0.193889,61891.0,61890.0,0.001]
[1727812195922,0.193889,61891.0,61888.0,0.194818]
[1727812195923,0.193895,61889.0,61888.0,0.00092]
[1727812196177,0.3503528,61889.0,61888.0,0.00092]
[1727812196676,0.4764405,61889.0,61888.0,0.00092]
[1727812197203,0.38439516,61889.0,61888.0,0.00092]
[1727812197975,0.38539516,61889.0,61888.0,0.00092]
[1727812198244,0.4596199,61889.0,61888.0,0.00092]
[1727812198503,0.50937674,61882.0,61881.0,0.00082]
[1727812198756,1.18699265,61882.0,61881.0,0.00082]
[1727812198987,1.17053691,61882.0,61881.0,0.00082]
[1727812199227,1.09947522,61882.0,61881.0,0.00082]
[1727812199471,1.12863957,61882.0,61881.0,0.00082]
[1727812200187,1.22497242,61882.0,61881.0,0.00082]
[1727812200419,0.03388541,61882.0,61881.0,0.00082]
[1727812200662,0.04588541,61882.0,61881.0,0.19797163]
[1727812200893,0.04588541,61882.0,61881.0,0.21774]
[1727812200894,0.03388541,61882.0,61881.0,0.21774]
[1727812201136,0.04933068,61882.0,61881.0,0.19574]
[1727812201378,0.04933068,61882.0,61881.0,0.00182]
[1727812201614,0.02533068,61882.0,61881.0,0.19474]
[1727812201889,0.02533068,61882.0,61881.0,0.21774]
[1727812201890,0.02633068,61882.0,61881.0,0.21774]
[1727812202130,0.02633068,61882.0,61881.0,0.5557978]
[1727812202367,0.02633068,61882.0,61881.0,0.5727978]
[1727812202368,0.02533068,61882.0,61881.0,0.5727978]
[1727812202622,0.24221167,61896.0,61881.0,0.5727978]
[1727812202623,0.24221167,61896.0,61895.0,0.216876]
[1727812202849,0.24221167,61896.0,61895.0,0.52353574]
[1727812203067,0.24930765,61896.0,61895.0,0.52353574]
[1727812203284,0.00873798,61896.0,61895.0,0.52353574]
[1727812203502,0.001642,61896.0,61895.0,0.52353574]
[1727812203731,0.001642,61896.0,61895.0,0.193876]
[1727812204012,0.001642,61896.0,61895.0,0.55312552]
[1727812204700,0.002642,61896.0,61895.0,0.56112552]
[1727812204915,0.001642,61896.0,61895.0,0.216876]
[1727812205138,0.003642,61896.0,61895.0,0.230876]
[1727812205354,0.003642,61896.0,61895.0,0.57035418]
[1727812205543,0.002642,61896.0,61895.0,0.56112552]
[1727812205784,0.001642,61896.0,61895.0,0.55312552]
[1727812206491,0.001642,61896.0,61881.0,0.00082]
[1727812206492,0.1580998,61896.0,61881.0,0.00082]
[1727812206708,0.1564578,61895.0,61884.0,0.24056967]
[1727812206950,0.16355355,61895.0,61887.0,0.387801]
[1727812207173,0.16355355,61895.0,61887.0,0.387797]
[1727812207398,0.16355355,61895.0,61881.0,0.00082]
[1727812207613,0.193886,61892.0,61887.0,0.193899]
[1727812207888,0.16355355,61895.0,61881.0,0.01282]
[1727812208119,0.00709344,61891.0,61881.0,0.00482]
[1727812208349,0.1564578,61895.0,61887.0,0.1939]
[1727812208350,0.193884,61893.0,61887.0,0.1939]
[1727812208586,0.00709114,61890.0,61884.0,0.387822]
[1727812208803,0.1564578,61890.0,61881.0,0.388658]
[1727812209025,0.00708768,61889.0,61885.0,0.193905]
[1727812209498,0.00708768,61889.0,61885.0,0.387813]
[1727812209727,0.00708768,61889.0,61888.0,0.193898]
[1727812210176,0.001,61892.0,61883.0,0.387825]
[1727812210433,0.24456967,61895.0,61891.0,0.193889]
[1727812210434,0.24056967,61895.0,61891.0,0.193889]
[1727812210661,0.24056967,61895.0,61881.0,0.00282]
[1727812210662,0.094642,61896.0,61895.0,0.193876]
[1727812211120,0.001642,61896.0,61895.0,0.193876]
[1727812211355,0.02696413,61896.0,61895.0,0.193876]
[1727812212035,0.02896413,61896.0,61895.0,0.193876]
[1727812212260,0.02696413,61896.0,61895.0,0.193876]
[1727812212959,0.02696413,61896.0,61888.0,0.464797]
[1727812212960,0.18342193,61896.0,61888.0,0.387797]
[1727812213198,0.18342193,61896.0,61889.0,0.24056967]
[1727812213430,0.02696413,61896.0,61895.0,0.194876]
[1727812213648,0.02696413,61896.0,61895.0,0.197876]
[1727812213871,0.02696413,61896.0,61895.0,0.196876]
[1727812214091,0.02696413,61896.0,61895.0,0.197876]
[1727812214304,0.02696413,61896.0,61893.0,0.387761]
[1727812214520,0.02696413,61896.0,61895.0,0.193876]
[1727812214739,0.02696413,61896.0,61887.0,0.3878]
[1727812214960,0.02696413,61896.0,61895.0,0.194876]
[1727812215190,0.02696413,61896.0,61895.0,0.197876]
[1727812215669,0.02696413,61896.0,61895.0,0.220876]
[1727812215942,0.02696413,61896.0,61895.0,0.40130691]
[1727812216170,0.001642,61896.0,61895.0,0.398076]
[1727812217097,0.001642,61896.0,61895.0,0.394076]
[1727812217542,0.02695982,61896.0,61895.0,0.394076]
[1727812217993,0.02795982,61896.0,61895.0,0.401076]
[1727812218224,0.02895982,61896.0,61895.0,0.407076]
[1727812220126,0.02895982,61896.0,61895.0,0.89978332]
[1727812221554,0.02895982,61896.0,61895.0,0.90178332]
[1727812221793,0.02895982,61896.0,61895.0,0.90678332]
[1727812222301,0.01357491,61896.0,61895.0,0.91678332]
[1727812222533,0.002,61896.0,61895.0,0.91678332]
[1727812223304,0.24056967,61910.0,61909.0,0.216832]
[1727812223747,0.24804677,61910.0,61909.0,0.216832]
[1727812223980,0.00164,61915.0,61909.0,0.023]
[1727812224238,0.00164,61915.0,61914.0,0.193817]
[1727812224491,0.00164,61915.0,61896.0,0.012]
[1727812224492,0.33716967,61910.0,61905.0,0.387687]
[1727812224733,0.33624952,61906.0,61891.0,0.24056967]
[1727812225007,0.33624952,61901.0,61898.0,0.24056967]
[1727812225262,0.33624952,61901.0,61895.0,0.014]
[1727812225263,0.193861,61900.0,61895.0,0.014]
[1727812225513,0.1564578,61901.0,61896.0,0.387746]
[1727812225770,0.193865,61899.0,61895.0,0.207875]
[1727812226018,0.1564578,61901.0,61896.0,0.387742]
[1727812226294,0.43586115,61909.0,61891.0,0.24056967]
[1727812226295,0.24056967,61906.0,61892.0,0.023]
[1727812226534,0.24056967,61906.0,61892.0,0.387772]
[1727812226769,0.24056967,61906.0,61886.0,0.023]
[1727812226770,0.193846,61905.0,61901.0,0.193857]
[1727812227026,0.24056967,61906.0,61886.0,0.023]
[1727812227261,0.24056967,61906.0,61905.0,0.193845]
[1727812227509,0.24056967,61906.0,61902.0,0.193851]
[1727812227742,0.1564578,61909.0,61899.0,0.387725]
[1727812227970,0.0966,61910.0,61900.0,0.00323064]
[1727812228194,0.196845,61905.0,61901.0,0.193856]
[1727812228416,0.003,61905.0,61896.0,0.387741]
[1727812228640,0.003,61905.0,61903.0,0.193851]
[1727812228856,0.003,61905.0,61902.0,0.193853]
[1727812229515,0.003,61905.0,61900.0,0.387721]
[1727812229736,0.003,61905.0,61901.0,0.193856]
[1727812229954,0.006,61906.0,61905.0,0.001]
[1727812230179,0.193842,61906.0,61901.0,0.193856]
[1727812230674,0.003,61905.0,61901.0,0.193856]
[1727812230927,0.001,61905.0,61904.0,0.193848]
[1727812231413,0.001,61905.0,61893.0,0.26356967]
[1727812231654,0.00388958,61905.0,61904.0,0.193848]
[1727812231901,0.00264,61905.0,61904.0,0.193848]
[1727812232136,0.00552958,61905.0,61904.0,0.193848]
[1727812232381,0.00552958,61905.0,61904.0,0.19707864]
[1727812232382,0.00452958,61905.0,61904.0,0.19707864]
[1727812232626,0.00452958,61905.0,61904.0,0.216848]
[1727812232897,0.00452958,61905.0,61904.0,0.22007841]
[1727812232898,0.00164,61905.0,61904.0,0.22007841]
[1727812233135,0.00464,61905.0,61904.0,0.22007841]
[1727812233381,0.00164,61905.0,61904.0,0.37653621]
[1727812233636,0.00164,61905.0,61904.0,0.4823058]
[1727812233864,0.00164,61915.0,61914.0,0.65306652]
[1727812234108,0.00164,61915.0,61914.0,0.80952432]
[1727812234351,0.00164,61915.0,61914.0,0.4732748]
[1727812235909,0.00164,61915.0,61914.0,0.4872748]
[1727812236120,0.00164,61915.0,61914.0,0.82352432]
[1727812236327,0.00164,61915.0,61914.0,0.80952432]
[1727812236548,0.00264,61915.0,61914.0,0.83552432]
[1727812236763,0.00264,61915.0,61914.0,0.91832432]
[1727812236951,0.00264,61915.0,61914.0,0.90432432]
[1727812237445,0.00264,61915.0,61914.0,0.90632432]
[1727812237446,0.00164,61915.0,61914.0,0.90632432]
[1727812237707,0.00264,61915.0,61914.0,0.91932432]
[1727812237946,0.00164,61915.0,61914.0,0.90632432]
[1727812238186,0.00164,61915.0,61914.0,0.5700748]
[1727812238704,0.00164,61915.0,61914.0,0.5560748]
[1727812238965,0.00164,61915.0,61914.0,0.5700748]
[1727812239213,0.00264,61915.0,61914.0,0.5820748]
[1727812239467,0.00264,61915.0,61914.0,0.411617]
[1727812239714,0.00164,61915.0,61914.0,0.399617]
[1727812239991,0.00164,61915.0,61914.0,0.207817]
[1727812240485,0.00164,61915.0,61914.0,0.193817]
[1727812240784,0.00164,61915.0,61914.0,0.207817]
[1727812241022,0.1590978,61915.0,61914.0,0.027]
[1727812241260,0.00264,61915.0,61914.0,0.027]
[1727812241501,0.00264,61915.0,61914.0,0.220817]
[1727812241502,0.02046824,61915.0,61914.0,0.220817]
[1727812241736,0.00264,61915.0,61914.0,0.027]
[1727812241982,0.00264,61915.0,61914.0,0.013]
[1727812242216,0.00264,61915.0,61914.0,0.220817]
[1727812242459,0.02046518,61915.0,61914.0,0.027]
[1727812242697,0.02046518,61915.0,61914.0,0.013]
[1727812242698,0.00264,61915.0,61914.0,0.013]
[1727812242927,0.00264,61915.0,61914.0,0.193817]
[1727812243435,0.00164,61915.0,61914.0,0.193817]
[1727812243922,0.00364,61915.0,61914.0,0.206817]
[1727812244166,0.02146619,61915.0,61914.0,0.013]
[1727812244423,0.20049892,61915.0,61914.0,0.013]
[1727812244938,0.20049892,61915.0,61896.0,0.00082]
[1727812244939,0.387661,61910.0,61896.0,0.00082]
[1727812245168,0.193851,61903.0,61902.0,0.24056967]
[1727812245397,0.56980732,61909.0,61896.0,0.00082]
[1727812245398,0.57292604,61909.0,61896.0,0.388561]
[1727812245617,0.19686265,61903.0,61899.0,0.193862]
[1727812245842,0.02531789,61907.0,61903.0,0.193849]
[1727812246066,0.01775006,61902.0,61901.0,0.193857]
[1727812246349,0.02531789,61907.0,61906.0,0.193842]
[1727812246971,0.04296268,61907.0,61906.0,0.193842]
[1727812247433,0.04296268,61907.0,61899.0,0.004]
[1727812247677,0.04296268,61907.0,61903.0,0.193851]
[1727812247894,0.23680268,61907.0,61903.0,0.193851]
[1727812248130,0.04296268,61907.0,61903.0,0.193851]
[1727812248349,0.04296268,61907.0,61901.0,0.387715]
[1727812248570,0.23680268,61907.0,61906.0,0.003]
[1727812249002,0.04296268,61907.0,61896.0,0.388562]
[1727812249256,0.07660893,61906.0,61896.0,0.00082]
[1727812249505,0.41285845,61906.0,61896.0,0.00082]
[1727812249791,0.19387,61897.0,61896.0,0.00082]
[1727812250011,0.4475278,61897.0,61896.0,0.00082]
[1727812250244,0.46218977,61897.0,61896.0,0.00082]
[1727812250709,0.13718699,61897.0,61896.0,0.00082]
[1727812250923,0.48751479,61897.0,61896.0,0.00082]
[1727812251596,0.29764479,61897.0,61896.0,0.00082]
[1727812252047,0.29764479,61897.0,61896.0,0.194693]
[1727812252048,0.14118699,61897.0,61896.0,0.194693]
[1727812252273,0.14618699,61897.0,61896.0,0.194693]
[1727812252698,0.13718699,61897.0,61896.0,0.194693]
[1727812253196,0.14418699,61897.0,61896.0,0.198693]
[1727812253411,0.13718699,61897.0,61896.0,0.197693]
[1727812253654,0.13718699,61897.0,61896.0,0.195693]
[1727812254101,0.04285318,61897.0,61896.0,0.195693]
[1727812254327,0.04385318,61897.0,61896.0,0.195693]
[1727812255049,0.04385318,61897.0,61896.0,0.194693]
[1727812255524,0.04385318,61897.0,61896.0,0.218693]
[1727812255751,0.02632502,61897.0,61896.0,0.56182158]
[1727812255978,0.02632502,61897.0,61896.0,0.5582508]
[1727812256201,0.02632502,61897.0,61896.0,0.5612508]
[1727812256434,0.00164,61905.0,61904.0,0.198848]
[1727812256654,0.24056967,61910.0,61908.0,0.005]
[1727812256886,0.24056967,61910.0,61909.0,0.80953932]
[1727812257141,0.00164,61915.0,61909.0,0.80953932]
[1727812257142,0.00164,61915.0,61914.0,0.293817]
[1727812257403,0.00164,61915.0,61914.0,0.81452432]
[1727812257631,0.00164,61915.0,61914.0,0.90752432]
[1727812258093,0.00164,61915.0,61914.0,0.90952432]
[1727812258319,0.05,61920.0,61919.0,0.66005052]
[1727812258540,0.05,61920.0,61919.0,0.81650832]
[1727812258759,0.24220967,61931.0,61930.0,0.193767]
[1727812258979,0.24220967,61931.0,61930.0,0.55301652]
[1727812259416,0.00164,61931.0,61930.0,0.55301652]
[1727812259857,0.00164,61931.0,61930.0,0.65301652]
[1727812260089,0.00164,61931.0,61930.0,0.80947432]
[1727812260317,0.00164,61931.0,61930.0,0.90367432]
[1727812260536,0.00364,61931.0,61930.0,0.92967432]
[1727812261253,0.00264,61931.0,61930.0,0.92934589]
[1727812261690,0.00264,61931.0,61930.0,0.92734589]
[1727812261942,0.00264,61931.0,61930.0,0.92934589]
[1727812262160,0.00164,61931.0,61930.0,0.5654248]
[1727812262382,0.00164,61931.0,61930.0,0.5604248]
[1727812262621,0.00164,61931.0,61930.0,0.4832248]
[1727812262834,0.00164,61931.0,61930.0,0.217767]
[1727812263279,0.00164,61931.0,61930.0,0.193767]
[1727812263487,0.00164,61931.0,61930.0,0.207767]
[1727812263921,0.00164,61931.0,61930.0,0.5702454]
[1727812264138,0.00164,61931.0,61930.0,0.244767]
[1727812264350,0.00164,61931.0,61930.0,0.230767]
[1727812264775,0.00164,61931.0,61930.0,0.229767]
[1727812265255,0.00164,61931.0,61930.0,0.243767]
[1727812266421,0.00164,61931.0,61930.0,0.7397031]
[1727812266649,0.00164,61931.0,61930.0,0.73647432]
[1727812266871,0.00164,61931.0,61930.0,0.74147432]
[1727812268945,0.00164,61931.0,61930.0,0.4052248]
[1727812269520,0.00164,61931.0,61930.0,0.243767]
[1727812270720,0.09164,61931.0,61930.0,0.027]
[1727812271199,0.10672267,61931.0,61930.0,0.220767]
[1727812271440,0.09164,61931.0,61930.0,0.220767]
[1727812271983,0.10672267,61931.0,61930.0,0.220767]
[1727812272249,0.18982267,61931.0,61930.0,0.027]
[1727812272507,0.10672267,61931.0,61930.0,0.027]
[1727812273025,0.10672267,61931.0,61930.0,0.013]
[1727812273325,0.10672267,61931.0,61930.0,0.001]
[1727812273562,0.30148967,61931.0,61930.0,0.001]
[1727812273875,0.45794747,61931.0,61930.0,0.001]
[1727812274607,0.10772267,61931.0,61930.0,0.001]
[1727812275607,0.30148667,61931.0,61930.0,0.001]
[1727812275837,0.10772267,61931.0,61930.0,0.001]
[1727812276114,0.10772267,61931.0,61930.0,0.194767]
[1727812276445,0.01772267,61931.0,61930.0,0.71896549]
[1727812276654,0.01772267,61931.0,61930.0,0.47839582]
[1727812276917,0.00264,61931.0,61930.0,0.50099503]
[1727812277184,0.00264,61931.0,61930.0,0.50299503]
[1727812277401,0.00164,61931.0,61930.0,0.47839582]
[1727812277637,0.00164,61931.0,61930.0,0.4872248]
[1727812277901,0.00164,61931.0,61930.0,0.330767]
[1727812278695,0.00164,61931.0,61930.0,0.230767]
[1727812278960,0.00164,61931.0,61930.0,0.015]
[1727812279204,0.00164,61931.0,61930.0,0.001]
[1727812279445,0.01418753,61931.0,61930.0,0.193767]
[1727812279680,0.00164,61931.0,61930.0,0.028]
[1727812279894,0.00164,61931.0,61930.0,0.014]
[1727812280125,0.01518753,61931.0,61930.0,0.193767]
[1727812280416,0.193768,61930.0,61926.0,0.193779]
[1727812280650,0.01418664,61931.0,61920.0,0.388411]
[1727812280651,0.01418664,61931.0,61921.0,0.24056967]
[1727812280833,0.0124817,61929.0,61926.0,0.193776]
[1727812281298,0.0124817,61929.0,61923.0,0.387577]
[1727812281299,0.0124817,61929.0,61925.0,0.193781]
[1727812281526,0.0124817,61929.0,61920.0,0.388411]
[1727812281948,0.193777,61927.0,61923.0,0.193787]
[1727812282168,0.193775,61928.0,61923.0,0.193786]
[1727812282387,0.01248333,61926.0,61922.0,0.193789]
[1727812282602,0.01248333,61926.0,61922.0,0.387581]
[1727812282819,0.00164,61931.0,61922.0,0.387581]
[1727812282820,0.193775,61928.0,61922.0,0.387581]
[1727812283036,0.01248366,61925.0,61924.0,0.193785]
[1727812283257,0.00164,61931.0,61921.0,0.387587]
[1727812283523,0.193771,61929.0,61925.0,0.193781]
[1727812284183,0.193771,61929.0,61922.0,0.003]
[1727812284184,0.0939,61926.0,61922.0,0.003]
[1727812284435,0.19379,61923.0,61920.0,0.00382]
[1727812284658,0.387569,61925.0,61920.0,0.00382]
[1727812284659,0.1564578,61925.0,61920.0,0.00382]
[1727812284892,0.1564578,61925.0,61920.0,0.00082]
[1727812284893,0.193795,61921.0,61920.0,0.00082]
[1727812285569,0.3502528,61921.0,61920.0,0.00082]
[1727812286480,0.387656,61911.0,61907.0,0.24056967]
[1727812286741,0.002,61924.0,61907.0,0.24056967]
[1727812286742,0.284636,61908.0,61907.0,0.24056967]
[1727812286959,0.2472578,61908.0,61895.0,0.387747]
[1727812287175,0.193851,61904.0,61899.0,0.193862]
[1727812287401,0.387685,61906.0,61898.0,0.24056967]
[1727812287626,0.193851,61903.0,61898.0,0.43443567]
[1727812287843,0.5441428,61906.0,61894.0,0.387757]
[1727812288061,0.19385,61904.0,61899.0,0.193863]
[1727812288287,0.19385,61904.0,61897.0,0.387739]
[1727812288512,0.19385,61904.0,61899.0,0.193861]
[1727812288728,0.1564578,61905.0,61898.0,0.387732]
[1727812288942,0.193849,61904.0,61900.0,0.19386]
[1727812289380,0.193849,61904.0,61891.0,0.62834767]
[1727812289381,0.001,61904.0,61899.0,0.24056967]
[1727812289605,0.001,61904.0,61903.0,0.193851]
[1727812290074,0.01210527,61904.0,61903.0,0.193851]
[1727812290324,0.001,61904.0,61901.0,0.387715]
[1727812290576,0.002,61904.0,61901.0,0.387715]
[1727812290809,0.01310527,61904.0,61902.0,0.193853]
[1727812291078,0.03077423,61904.0,61899.0,0.00082]
[1727812291324,0.193854,61902.0,61899.0,0.00082]
[1727812291555,0.01110494,61903.0,61899.0,0.00082]
[1727812291788,0.193858,61901.0,61899.0,0.00082]
[1727812292029,0.193861,61900.0,61899.0,0.00082]
[1727812292260,0.20487615,61900.0,61899.0,0.00082]
[1727812292973,0.01101515,61900.0,61899.0,0.00082]
[1727812293208,0.01101515,61900.0,61899.0,0.00382]
[1727812293462,0.193847,61905.0,61900.0,0.19386]
[1727812293737,0.54111732,61900.0,61899.0,0.00382]
[1727812293968,0.78246832,61900.0,61899.0,0.00682]
[1727812294209,0.793474,61900.0,61899.0,0.00382]
[1727812294470,0.95092078,61900.0,61899.0,0.00082]
[1727812294706,0.94992078,61900.0,61899.0,0.00482]
[1727812295166,0.94992078,61900.0,61899.0,0.00082]
[1727812295400,0.95092078,61900.0,61899.0,0.00182]
[1727812295683,0.794474,61900.0,61899.0,0.00182]
[1727812295930,0.19387,61897.0,61896.0,0.00082]
[1727812296169,0.4283278,61897.0,61896.0,0.00082]
[1727812296407,0.43932711,61897.0,61896.0,0.00082]
[1727812296649,0.59577389,61897.0,61896.0,0.00082]
[1727812297108,0.44232711,61897.0,61896.0,0.00182]
[1727812297613,0.36632711,61897.0,61896.0,0.00182]
[1727812298107,0.01599931,61897.0,61896.0,0.195693]
[1727812298378,0.01599931,61897.0,61896.0,0.00182]
[1727812298883,0.01399931,61897.0,61896.0,0.00182]
[1727812299137,0.01299931,61897.0,61896.0,0.00082]
[1727812299376,0.01499931,61897.0,61896.0,0.00082]
[1727812299616,0.01299931,61897.0,61896.0,0.00082]
[1727812299865,0.003,61897.0,61896.0,0.00082]
[1727812300097,0.01391397,61897.0,61896.0,0.00082]
[1727812300409,0.25265446,61897.0,61896.0,0.00082]
[1727812300666,0.45743843,61897.0,61896.0,0.00082]
[1727812300902,0.45543843,61897.0,61896.0,0.00082]
[1727812301129,0.45543843,61897.0,61885.0,0.193906]
[1727812301130,0.387803,61887.0,61885.0,0.24056967]
[1727812301351,0.3503618,61886.0,61885.0,0.24056967]
[1727812301576,0.1564578,61886.0,61885.0,0.24056967]
[1727812301801,0.1564578,61886.0,61881.0,0.38866]
[1727812301802,0.3503628,61886.0,61881.0,0.00082]
[1727812302026,0.3503628,61886.0,61881.0,0.194738]
[1727812302027,0.36124283,61886.0,61881.0,0.194738]
[1727812302249,0.16733783,61886.0,61882.0,0.194738]
[1727812302473,0.16733783,61886.0,61882.0,0.000821]
[1727812302921,0.01088003,61886.0,61884.0,0.24056967]
[1727812303151,0.01188003,61886.0,61885.0,0.193908]
[1727812303394,0.001,61886.0,61885.0,0.193908]
[1727812303883,0.24056967,61893.0,61886.0,0.193903]
[1727812304112,0.26290542,61892.0,61883.0,0.387827]
[1727812304344,0.193906,61886.0,61882.0,0.000821]
[1727812304568,0.3503678,61885.0,61882.0,0.000821]
[1727812304791,0.16548753,61885.0,61882.0,0.000821]
[1727812305246,0.19081461,61885.0,61882.0,0.000821]
[1727812305705,0.0965,61884.0,61882.0,0.000821]
[1727812305953,0.0965,61884.0,61882.0,0.194737]
[1727812305954,0.2529578,61884.0,61882.0,0.194737]
[1727812306175,0.00903969,61883.0,61882.0,0.194737]
[1727812306390,0.00903969,61883.0,61882.0,0.000821]
[1727812306643,0.10372295,61883.0,61882.0,0.000821]
[1727812306868,0.10372295,61883.0,61882.0,0.001821]
[1727812307144,0.45409475,61883.0,61882.0,0.000821]
[1727812307386,0.45409475,61883.0,61882.0,0.002821]
[1727812307889,0.45409475,61883.0,61882.0,0.003821]
[1727812308111,0.16549749,61883.0,61882.0,0.003821]
[1727812308337,0.00903969,61883.0,61882.0,0.196738]
[1727812308778,0.00903969,61883.0,61882.0,0.199738]
[1727812308997,0.0965,61884.0,61883.0,0.193914]
[1727812309436,0.10533963,61884.0,61883.0,0.193914]
[1727812309915,0.10533963,61884.0,61882.0,0.199738]
[1727812310150,0.10533963,61884.0,61883.0,0.193914]
[1727812310394,0.00883963,61884.0,61883.0,0.193914]
[1727812310646,0.02532708,61885.0,61884.0,0.193911]
[1727812311109,0.03416772,61885.0,61884.0,0.193911]
[1727812311330,0.02532708,61885.0,61884.0,0.193911]
[1727812311552,0.03416772,61885.0,61884.0,0.193911]
[1727812311774,0.05697409,61885.0,61884.0,0.001]
[1727812312899,0.05697409,61885.0,61884.0,0.194911]
[1727812313113,0.03416772,61885.0,61884.0,0.194911]
[1727812313302,0.03416772,61885.0,61884.0,0.001]
[1727812313523,0.02532708,61885.0,61884.0,0.193911]
[1727812315160,0.02532708,61885.0,61884.0,0.270411]
[1727812315853,0.02532708,61885.0,61884.0,0.260411]
[1727812316298,0.02532708,61885.0,61884.0,0.270411]
[1727812316527,0.02532708,61885.0,61884.0,0.266411]
[1727812316747,0.02532708,61885.0,61884.0,0.279411]
[1727812316969,0.02532708,61885.0,61884.0,0.273411]
[1727812317199,0.02532708,61885.0,61884.0,0.196911]
[1727812317430,0.02532708,61885.0,61884.0,0.207911]
[1727812317874,0.02532708,61885.0,61884.0,0.196911]
[1727812318087,0.02532708,61885.0,61884.0,0.197911]
[1727812318302,0.02532708,61885.0,61884.0,0.207911]
[1727812318520,0.02532708,61885.0,61884.0,0.197911]
[1727812318990,0.02532708,61885.0,61884.0,0.210911]
[1727812320135,0.20370689,61885.0,61884.0,0.027]
[1727812320359,0.46879288,61885.0,61884.0,0.027]
[1727812320580,0.47427208,61885.0,61884.0,0.027]
[1727812320811,0.450945,61885.0,61884.0,0.027]
[1727812321289,0.450945,61885.0,61883.0,0.00082]
[1727812321290,0.257037,61885.0,61883.0,0.00082]
[1727812321518,0.2944872,61885.0,61883.0,0.00082]
[1727812321756,0.2944872,61885.0,61884.0,0.193911]
[1727812321757,0.1005792,61885.0,61884.0,0.193911]
[1727812322219,0.093,61894.0,61883.0,0.00082]
[1727812322440,0.1564578,61893.0,61883.0,0.388642]
[1727812322678,0.16469356,61893.0,61884.0,0.24056967]
[1727812322889,0.24880543,61893.0,61887.0,0.387801]
[1727812323134,0.44268943,61893.0,61887.0,0.387803]
[1727812323352,0.1564578,61892.0,61887.0,0.5817]
[1727812323563,0.1564578,61892.0,61887.0,0.387802]
[1727812323801,0.00826988,61891.0,61890.0,0.193892]
[1727812324040,0.18178325,61891.0,61890.0,0.193892]
[1727812324509,0.19005458,61891.0,61890.0,0.193892]
[1727812324744,0.19005458,61891.0,61888.0,0.387796]
[1727812324977,0.19005458,61891.0,61889.0,0.193895]
[1727812325210,0.19005458,61891.0,61888.0,0.387796]
[1727812325211,0.03359678,61891.0,61890.0,0.45746167]
[1727812325442,0.03359678,61891.0,61890.0,0.216892]
[1727812325671,0.02532545,61891.0,61890.0,0.216892]
[1727812325909,0.02532545,61891.0,61890.0,0.193892]
[1727812326142,0.02532545,61891.0,61890.0,0.194892]
[1727812326638,0.02532545,61891.0,61890.0,0.276992]
[1727812327095,0.02532545,61891.0,61890.0,0.193892]
[1727812327308,0.02532545,61891.0,61890.0,0.198892]
[1727812327759,0.02532545,61891.0,61890.0,0.202892]
[1727812327981,0.02532545,61891.0,61890.0,0.197892]
[1727812328205,0.02532545,61891.0,61890.0,0.193892]
[1727812328440,0.02532545,61891.0,61890.0,0.204892]
[1727812329133,0.02532545,61891.0,61890.0,0.011]
[1727812329352,0.00164,61893.0,61890.0,0.023]
[1727812329587,0.00164,61893.0,61891.0,0.193888]
[1727812329796,0.0082712,61892.0,61891.0,0.193889]
[1727812330007,0.00164,61893.0,61890.0,0.023]
[1727812330308,0.24056967,61891.0,61890.0,0.023]
[1727812330524,0.193897,61889.0,61884.0,0.00082]
[1727812330765,0.193897,61889.0,61885.0,0.24056967]
[1727812331004,0.00832037,61888.0,61886.0,0.193904]
[1727812331237,0.04549682,61887.0,61884.0,0.00082]
[1727812331473,0.00827943,61887.0,61884.0,0.388641]
[1727812331699,0.00827943,61887.0,61885.0,0.193906]
[1727812331929,0.1939,61888.0,61884.0,0.00482]
[1727812332141,0.00827899,61886.0,61884.0,0.198731]
[1727812332301,0.1564578,61890.0,61884.0,0.194731]
[1727812332534,0.00827899,61885.0,61884.0,0.194731]
[1727812332945,0.3503508,61890.0,61886.0,0.193903]
[1727812333179,0.193908,61885.0,61884.0,0.00082]
[1727812333424,0.3503658,61885.0,61884.0,0.00182]
[1727812333661,0.37569501,61885.0,61884.0,0.00182]
[1727812333879,0.18178701,61885.0,61884.0,0.00082]
[1727812334164,0.02532921,61885.0,61884.0,0.194731]
[1727812334896,0.02532921,61885.0,61884.0,0.195731]
[1727812335142,0.003,61890.0,61889.0,0.193895]
[1727812335349,0.04828639,61897.0,61892.0,0.193886]
[1727812335573,0.31299926,61899.0,61892.0,0.193886]
[1727812335574,0.24056967,61899.0,61892.0,0.193886]
[1727812335794,0.05,61900.0,61892.0,0.216886]
[1727812336010,0.05,61900.0,61892.0,0.29969588]
[1727812336697,0.05,61900.0,61892.0,0.45615368]
[1727812336907,0.05,61900.0,61892.0,0.5550438]
[1727812337342,0.05,61900.0,61892.0,0.5880438]
[1727812337555,0.00264,61893.0,61892.0,0.5880438]
[1727812337778,0.05,61900.0,61899.0,0.295864]
[1727812338075,0.05,61900.0,61899.0,0.81157132]
[1727812338280,0.05,61900.0,61899.0,0.81657132]
[1727812338521,0.05,61900.0,61899.0,0.80957132]
[1727812339015,0.05,61900.0,61899.0,0.81057132]
[1727812339267,0.05,61900.0,61899.0,0.80957132]
[1727812339515,0.05,61900.0,61899.0,0.82357132]
[1727812340271,0.05,61900.0,61899.0,1.06514099]
[1727812340524,0.0088125,61900.0,61899.0,0.9724625]
[1727812340773,0.0088125,61900.0,61899.0,0.93017132]
[1727812341021,0.24056967,61917.0,61916.0,0.55305952]
[1727812341289,0.24056967,61917.0,61916.0,0.88511732]
[1727812341548,0.00164,61920.0,61919.0,0.216801]
[1727812341804,0.00164,61920.0,61919.0,0.3732588]
[1727812342062,0.00164,61920.0,61919.0,0.216801]
[1727812342357,0.00164,61920.0,61919.0,0.193801]
[1727812343537,0.02694915,61920.0,61919.0,0.193801]
[1727812343787,0.02694915,61920.0,61919.0,0.200801]